Cogmind - Beta 14 @@@ ROGUE MODE // 2024.11.03 @ 17:26:52 Player: gorb Result: Destroyed by G-34 Mercenary with Small Laser Performance ------------- Evolutions (1) 500 Regions Visited (2) 400 Robots Destroyed (15) 75 Value Destroyed (358) 358 Prototype IDs (1) 20 Alien Tech Used (0) 0 Bonus (0) 0 TOTAL SCORE: 1353 Bonus ------- None Cogmind --------- Core Integrity 0/400 Matter 400/400 Energy 100/100 System Corruption 5% Temperature Cool (6) Movement Core (1400) Ox27 Location -9/Materials Parts ------- > --- POWER (1) -------- (None) > --- PROPULSION (4) --- (None) > --- UTILITY (2) ------ Huge Storage Unit Medium Matter Pod > --- WEAPON (2) ------- (None) > --- INVENTORY (25) --- Hover Unit Flight Unit Improved Flight Unit Small Storage Unit Visual Processing Unit ECM Suite Tractor Beam Small Laser Peak State ------------ > --- POWER ------------ (None) > --- PROPULSION ------- Wheel Flight Unit Improved Flight Unit Improved Flight Unit > --- UTILITY ---------- Huge Storage Unit Medium Matter Pod > --- WEAPON ----------- Medium Laser Assault Rifle > --- INVENTORY -------- Ion Engine Light Ion Engine Aluminum Leg Aluminum Leg Hover Unit Small Storage Unit Visual Processing Unit ECM Suite Tractor Beam Small Laser Light Assault Rifle Light Assault Rifle [Rating: 13] Favorites ----------- Power Light Ion Engine Engine Light Ion Engine Propulsion Wheel Leg Aluminum Leg Wheel Wheel Hover Unit Hover Unit Flight Unit Flight Unit Utility Medium Matter Pod Storage Medium Matter Pod Weapon Assault Rifle Energy Gun Medium Laser Ballistic Gun Assault Rifle Build | -11 -10 -9 ------- Run | Yrd Mat Mat Slots Evolved 2 | . . 2 Power . | . . . Propulsion 2 | . . 2 Utility . | . . . Weapon . | . . . Parts Attached 24 | 4 8 12 Power 5 | . 3 2 Engine 5 | . 3 2 Core . | . . . Reactor . | . . . Propulsion 12 | 2 2 8 Treads . | . . . Leg 4 | 2 . 2 Wheel 4 | . 2 2 Hover 1 | . . 1 Flight 3 | . . 3 Utility 3 | . 3 . Device . | . . . Storage 3 | . 3 . Processor . | . . . Hackware . | . . . Protection . | . . . Artifact . | . . . Weapon 4 | 2 . 2 Energy Gun 1 | 1 . . Energy Cannon . | . . . Ballistic Gun 3 | 1 . 2 Ballistic Cannon . | . . . Launcher . | . . . Special Weapon . | . . . Impact Weapon . | . . . Slashing Weapon . | . . . Piercing Weapon . | . . . Special Melee Weapon . | . . . Unidentified Prototypes 1 | . . 1 Parts Lost 13 | . . 13 Power 3 | . . 3 Propulsion 6 | . . 6 Utility . | . . . Weapon 4 | . . 4 Highest Loss Streak 4 | . . 4 To Critical Strikes . | . . . Average Slot Usage (%) 83 | . 99 62 Engine 10 | . 14 6 Leg 1 | . . 3 Wheel 20 | . 27 10 Storage 25 | . 27 22 Energy Gun 10 | . 14 5 Ballistic Gun 13 | . 14 13 Peak Build Rating 13 | 4 8 13 Average Rating 6 | 2 7 6 On Entrance 4 | . 4 8 Naked Turns . | . . . Heaviest Build 89 | 4 89 89 Greatest Support 46 | 20 26 46 Greatest Overweight (x) 29 | . 3 29 Average Overweight (x) 3 | . 2 6 Largest Inventory Capacity 25 | 5 25 25 Average Capacity 23 | 5 24 25 Most Carried 15 | 5 14 15 Average Carried 9 | 4 9 11 Final Capacity 25 | 5 25 25 Final Carried 14 | 5 14 8 Class Distribution -------------------- 100% | Mutant Dominant Class ---------------- Mutant | -10/Materials Mutant | -9/Materials Resources | -11 -10 -9 ----------- Run | Yrd Mat Mat Matter Collected 642 | 225 258 159 Remotely . | . . . Salvage Created 541 | . 275 266 Parts 36 | . 17 19 Haulers Intercepted . | . . . Recyclers Shooed . | . . . Parts Field Recycled . | . . . Retrieved Matter . | . . . Parts Self-Destructed . | . . . Prevented . | . . . Kills | -11 -10 -9 ------- Run | Yrd Mat Mat Combat Hostiles Destroyed 10 | . 5 5 Guns 10 | . 5 5 Classes Destroyed 7 | . 6 1 Worker 1 | . 1 . Recycler 1 | . 1 . Operator 1 | . 1 . Watcher 2 | . 1 1 Swarmer 3 | . 3 . Grunt 5 | . 2 3 Sentry 2 | . . 2 Best Kill Streak 5 | . 5 5 Combat Bots Only 4 | . 3 4 Max Kills in Single Turn 2 | . 2 1 Gunslinging . | . . . Exploded . | . . . Melee . | . . . Uniques/NPCs Destroyed . | . . . Combat | -11 -10 -9 -------- Run | Yrd Mat Mat Hostile Shots Fired 170 | . 30 140 Missed 47 | . 6 41 Damage Taken 1432 | . 227 1205 Core 457 | . 55 402 Absorbed by Shields . | . . . Core Remaining (%) 89 | 100 78 . Volleys Fired 52 | . 22 30 Largest 2 | . 2 2 Hottest 70 | . 70 70 Shots Fired 102 | . 44 58 Gun 102 | . 44 58 Cannon . | . . . Launcher . | . . . Special . | . . . Kinetic 63 | . 22 41 Thermal 39 | . 22 17 Explosive . | . . . Electromagnetic . | . . . Robot Hit Streak 8 | . 8 8 Robot Miss Streak 3 | . 2 3 Penetration Max . | . . . Secondary Targets 2 | . 1 1 Max Gunslinging Chain 1 | . 1 1 Shots Hit Robots 59 | . 28 31 Core Hits 25 | . 13 12 Critical Kills . | . . . Critical Parts Destroyed . | . . . Critical Strikes 4 | . 4 . Burn 4 | . 4 . Melee Attacks . | . . . Impact . | . . . Slashing . | . . . Piercing . | . . . Sneak Attacks . | . . . Combat Hostiles . | . . . Follow-up Attacks . | . . . Damage Inflicted 759 | . 394 365 Guns 746 | . 381 365 Cannons . | . . . Explosions . | . . . Melee . | . . . Ramming 13 | . 13 . Kinetic 434 | . 180 254 Thermal 312 | . 201 111 Explosive . | . . . Electromagnetic . | . . . Impact . | . . . Slashing . | . . . Piercing . | . . . Highest Corruption 5 | . . 5 Average Corruption 4 | . . 4 Corruption Purged . | . . . Corruption Blocked . | . . . Effects 6 | . . 6 Message Errors 1 | . . 1 Energy Discharges 1 | . . 1 Data Loss (minor) 1 | . . 1 Data Loss (major) 2 | . . 2 Misfires 1 | . . 1 Overload Shots . | . . . Overflow Damage . | . . . Projectiles . | . . . Explosions . | . . . Melee . | . . . Knockbacks 1 | . 1 . Impact 1 | . 1 . Kinetic . | . . . Secondary . | . . . Self-Inflicted Damage 6 | . 6 . Shots . | . . . Rammed 1 | . 1 . Targets Rammed 1 | . 1 . Kicked . | . . . Crushed . | . . . Highest Temperature 97 | . 60 97 Average Temperature 25 | . 20 33 Received Heat Transfer 462 | . 48 414 Siege Activations . | . . . Robots Corrupted . | . . . Combat Hostiles . | . . . Parts Fried . | . . . Impact Corruptions . | . . . Robots Melted . | . . . Combat Hostiles . | . . . Parts Melted 4 | . 4 . Heat Transferred 1221 | . 888 333 Parts Sabotaged . | . . . Parts Stolen . | . . . Parts Stripped . | . . . Power Chain Reactions . | . . . Alert | -11 -10 -9 ------- Run | Yrd Mat Mat Peak Influence 229 | . 229 78 Initial 11 | . . 11 Average 55 | . 63 49 Maximum Alert Level 1 | . 1 . Low Security (%) 94 | 100 90 100 Level 1 5 | . 9 . Level 2 . | . . . Level 3 . | . . . Level 4 . | . . . Level 5 . | . . . High Security . | . . . Max Security . | . . . Squads Dispatched 2 | . 1 1 Investigation . | . . . Extermination . | . . . Reinforcement 2 | . 1 1 Assault . | . . . Garrison . | . . . Intercept . | . . . Searches Triggered . | . . . Construction Impeded . | . . . Haulers Reinforced . | . . . Active Scanning Responses . | . . . Cargo Convoy Interrupts . | . . . Stealth | -11 -10 -9 --------- Run | Yrd Mat Mat Distress Signals 2 | . . 2 Communications Jammed . | . . . Distress Signals . | . . . Times Spotted 29 | . 12 17 Peak Tracking Total 6 | . 4 6 Tactical Retreats 2 | . 1 1 Traps | -11 -10 -9 ------- Run | Yrd Mat Mat Traps Triggered 1 | . . 1 Indirectly . | . . . Trap Hack Attempts . | . . . Triggered . | . . . Disarmed . | . . . Reprogrammed . | . . . Reused . | . . . Traps Extracted . | . . . Installed . | . . . Triggered . | . . . Machines | -11 -10 -9 ---------- Run | Yrd Mat Mat Machines Disabled . | . . . Max in Single Turn . | . . . Machines Repaired . | . . . Machines Dismantled . | . . . Machines Sabotaged . | . . . Overloaded Fab Kills . | . . . Hacking | -11 -10 -9 --------- Run | Yrd Mat Mat Machines Accessed 2 | . 1 1 Terminals 2 | . 1 1 Fabricators . | . . . Repair Stations . | . . . Recycling Units . | . . . Scanalyzers . | . . . Garrison Access . | . . . Total Hacks 6 | . 5 1 Successful 5 | . 4 1 Failed 1 | . 1 . Catastrophic . | . . . Database Lockouts . | . . . Manual 1 | . . 1 Terminals 6 | . 5 1 Fabricators . | . . . Repair Stations . | . . . Recycling Units . | . . . Scanalyzers . | . . . Garrison Access . | . . . Terminal Hacks 5 | . 4 1 Record 2 | . 2 . Alert Level 1 | . . 1 Dispatch Records 1 | . 1 . Zone Layout 1 | . 1 . Fabricator Hacks . | . . . Repair Station Hacks . | . . . Recycling Unit Hacks . | . . . Scanalyzer . | . . . Garrison Access Hacks . | . . . Unauthorized Hacks . | . . . Terminals . | . . . Fabricators . | . . . Repair Stations . | . . . Recycling Units . | . . . Scanalyzers . | . . . Garrison Access . | . . . Data Cores Recovered . | . . . Used . | . . . Hacking Detections 1 | . . 1 Full Trace Events . | . . . Feedback Events . | . . . Feedback Blocked . | . . . Robot Schematics Acquired . | . . . Robots Built . | . . . Authchips . | . . . Time . | . . . Total Robot Build Rating . | . . . Part Schematics Acquired . | . . . Parts Built . | . . . Authchips . | . . . Time . | . . . Total Part Build Rating . | . . . Parts Repaired . | . . . Time . | . . . Parts Recycled . | . . . Recycled Matter . | . . . Retrieved Matter . | . . . Retrieved Components . | . . . Parts Scanalyzed . | . . . Part Schematics Acquired . | . . . Parts Damaged . | . . . Bothacking | -11 -10 -9 ------------ Run | Yrd Mat Mat Used RIF Installer . | . . . Robots Hacked . | . . . Non-combat . | . . . Combat . | . . . Robot Hacks Applied . | . . . Relay Couplers Released . | . . . Fabnet Peak Effective % . | . . . Robots Rewired . | . . . Allies Hacked . | . . . Hacks Repelled . | . . . Allies | -11 -10 -9 -------- Run | Yrd Mat Mat Total Allies . | . . . Largest Group . | . . . Highest-Rated Group . | . . . Highest-Rated Ally . | . . . Total Orders . | . . . Ally Attacks . | . . . Total Damage . | . . . Kills . | . . . Allies Corrupted . | . . . Allies Melted . | . . . Intel | -11 -10 -9 ------- Run | Yrd Mat Mat Robot Analysis Total . | . . . Derelict Logs Recovered . | . . . Drone Launches . | . . . Drone Recoveries . | . . . Exploration | -11 -10 -9 ------------- Run | Yrd Mat Mat Turns Passed 1195 | 48 642 505 Spaces Moved 590 | 45 399 146 Core 30 | 23 . 7 Treads . | . . . Legs 40 | 22 . 18 Wheels 520 | . 399 121 Hover . | . . . Flight . | . . . Fastest Speed 50 | 50 90 100 Average Speed 157 | 84 131 250 Slowest Speed 1500 | 120 135 1500 Overloaded Moves . | . . . Propulsion Burnouts . | . . . Robots Hopped . | . . . Cave-ins Triggered . | . . . Exploration Rate (%) 23 | 3 49 17 Regions Visited 2 Branch Regions . Pre-discovered Areas . | . . . Known Exits Taken . | . . . Unknown Exits Taken 2 | 1 1 . Scrap Searched . | . . . Spaces Dug . | . . . Terrain Destroyed . | . . . Melee . | . . . Projectile . | . . . AOE . | . . . Terrain Rammed . | . . . Walls Destroyed . | . . . Machines Disabled . | . . . Actions | -11 -10 -9 --------- Run | Yrd Mat Mat Total 756 | 53 468 235 Wait 66 | . 27 39 Move 588 | 44 398 146 Hop . | . . . Pick Up 20 | 5 12 3 Fast Attach 4 | 4 . . Attach 15 | . 3 12 Detach 4 | . . 4 Swap 5 | . 5 . Drop 1 | . . 1 Fire 52 | . 22 30 Melee . | . . . Ram 1 | . 1 . Kick . | . . . Crush . | . . . Escape Stasis . | . . . Rewire . | . . . Trap . | . . . Miscellaneous . | . . . Route ------- -11/Scrapyard -10/Materials -9/Materials History --------- Turn | Location | Event 2 | -11/Scrapyard | Met Revision 17 7 | -11/Scrapyard | Discovered new exit (range 16) 49 | -11/Scrapyard | Entered Materials 301 | -10/Materials | Build established: Mutant 540 | -10/Materials | Discovered new exit (range 15) 691 | -10/Materials | Entered another Materials area 691 | -9/Materials | Evolved 2 slots: Propulsion x2 817 | -9/Materials | Lost 4 parts (1p3n) 999 | -9/Materials | Lost 4 parts (1p1n2w) 1174 | -9/Materials | Core integrity fell below 50% 1190 | -9/Materials | Core integrity fell below 20% 1196 | -9/Materials | Destroyed by G-34 Mercenary with Small Laser Last Messages --------------- reinforcements. ALERT: Hostiles spotted, dispatching reinforcements to Terminal M008. O-16 Technician locks terminal. Critical hit (Burn: +37). U-05 Engineer builds a Door. Lgt. Assault Rifle destroyed. Ion Engine destroyed. Aluminum Leg destroyed. S-10 Pest destroyed. K-01 Serf collects debris. U-05 Engineer destroyed. K-01 Serf collects debris. MJ< 0LZKPK3X3RMTO3IUR>N>MJD2,KNM K-01 Serf collects debris. R-06 Scavenger collects Lgt. Ion Engine. K-01 Serf collects debris. R-06 Scavenger collects Welding Torch. K-01 Serf collects debris. R-06 Scavenger collects Structural Scanner. Map ----- +----------------------------------------------------+ | ?????????????????????########### ###???????##### | | ????????????????????## ] # # ????????????? | | ????????????????????# ] ! + +?????????????? | | ????????????????????##] ! # #?????????????? | | ?????????????????????#]= # #?????????????? | | ???????????????????#############^ ^##????????????? | | ???????????????????# # #????????????? | | ???????????????????# """" # #????????????? | | ???????????????????# """" + #????????????? | | ???????????????????# """" # #????????????? | | ???????????????????# # % #????????????? | | ???????????????????# ###%###????????????? | | ???????????????????# #?# #??????????????? | | ???????????????????############?# #??????????????? | | ????????????????????#####??###### ###########????? | | ????????????????????# ?# #??? | | ????????????????????# # / ?? | | ????????????????????# # #??? | | ????????????????????# + k #??? | | ????????????????????# # ??? | | ????????????????????# ?# ???? | | ????????????????????####??## %########### ??? | | ??????????????###?????????# Y =#?????????? ???? | | ??????????????# ####### #??????????????? | | ??????????????# T" s s #??????????????? | | ???????????? u " g @ r T #??????????????? | | ??????????????# =%g #??????????????? | | ??????????????# u ###+### #??????????????? | | ??????????????### ???# ??# #??????????????? | | ?????????????????????# ???#########??????????????? | | ?????????????????????#???????????????????????????? | | ?????????????????????????????????????????????????? | | ?????????????????????????????????????????????????? | | ?????????????????????????????????????????????????? | | ?????????????????????????????????????????????????? | | ?????????????????????????????????????????????????? | | ?????????????????????????????????????????????????? | | ?????????????????????????????????????????????????? | | ?????????????????????????????????????????????????? | | ?????????????????????????????????????????????????? | | ?????????????????????????????????????????????????? | | ?????????????????????????????????????????????????? | | ?????????????????????????????????????????????????? | | ?????????????????????????????????????????????????? | | ?????????????????????????????????????????????????? | | ?????????????????????????????????????????????????? | | ?????????????????????????????????????????????????? | | ?????????????????????????????????????????????????? | | ?????????????????????????????????????????????????? | | ?????????????????????????????????????????????????? | +----------------------------------------------------+ Best States ------------- Heat Dissipation 28 Energy Generation 10 Energy Capacity 250 Matter Stores 400 Matter Capacity 400 Sight Range 16 Terrain Scan Density 10 Evasion (%) 50 Item Schematics ----------------- None Robot Schematics ------------------ None Fabricated ------------ Nothing Alien Tech Used ----------------- None Achievements -------------- None Challenges ------------ None Game ------ Seed BattleIntegratedRecalibrator Manual? 0 Play Time 00:12:30 Cumulative 10.0 hours Start 2024.11.03 @ 16:31:32 End 2024.11.03 @ 17:26:52 Sessions 1 Manual Loads 0 Difficulty Rogue Special Mode None Game No. 20 Rogue 20 Adventurer 0 Explorer 0 Win Type - Total 0 Types 0/0/0/0/0/0/0/0/0 Lore% 7 Gallery% 15 Achievement% 14 Wizard Run 0 Options --------- Layout 1 ASCII 0 Keyboard 0 Movement Mouse Keybinds 0 Fullscreen 1 Font 24/Smallcaps Map View 50x35 Zoom Use 0% Tactical HUD 0 Map Filters NONE Filters NONE Steam 1 RUN: 07cb5632-36ae-45fb-b6f3-e9ecc3841225